bitfinex-derivatives/quotes_SOLF0:USTF0_20250131
["timestamp","ask_amount","ask_price","bid_price","bid_amount"]
[1738288509629,4.23744879,237.64,237.59,4.23523417]
[1738288515038,4.23744879,237.64,237.59,0.02653417]
[1738288515933,4.2081,237.62,237.59,0.02653417]
[1738288517038,0.02954879,237.64,237.59,0.02653417]
[1738288517539,7.34889827,237.61,237.59,0.02653417]
[1738288518137,4.2085,237.6,237.59,0.02653417]
[1738288521346,7.34889827,237.61,237.59,0.02653417]
[1738288521746,7.34889827,237.63,237.59,0.02653417]
[1738288522347,7.34889827,237.63,237.59,4.23513417]
[1738288522643,0.02954879,237.64,237.59,7.37543244]
[1738288523750,0.02954879,237.64,237.62,4.2081]
[1738288534159,0.02954879,237.64,237.59,0.02653417]
[1738288534462,7.34889827,237.63,237.59,0.02653417]
[1738288534857,0.02954879,237.64,237.59,0.02653417]
[1738288535057,4.23734879,237.64,237.59,4.23523417]
[1738288537461,0.02954879,237.64,237.61,4.2083]
[1738288540359,0.02954879,237.64,237.6,4.2085]
[1738288543958,4.208,237.63,237.59,0.02653417]
[1738288544158,0.02954879,237.64,237.59,0.02653417]
[1738288544364,7.34889827,237.61,237.59,0.02653417]
[1738288544760,4.2085,237.6,237.59,0.02653417]
[1738288578587,7.34889827,237.61,237.59,0.02653417]
[1738288579189,11.55719827,237.61,237.59,0.02653417]
[1738288581389,7.34889827,237.61,237.59,0.02653417]
[1738288581596,0.02954879,237.64,237.59,0.02653417]
[1738288581985,0.02954879,237.64,237.62,4.2081]
[1738288582494,0.02954879,237.64,237.6,7.34889827]
[1738288582895,0.02954879,237.64,237.59,4.23513417]
[1738288583595,0.02954879,237.64,237.63,4.208]
[1738288584296,0.02954879,237.64,237.6,10.13559827]
[1738288584297,0.02954879,237.64,237.61,4.2081]
[1738288584498,0.02954879,237.64,237.6,10.13559827]
[1738288584992,0.02954879,237.64,237.62,4.2081]
[1738288586397,0.02954879,237.64,237.63,4.208]
[1738288586595,7.34889827,237.69,237.62,7.34889827]
[1738288587496,11.55559827,237.71,237.62,7.34889827]
[1738288587891,7.34889827,237.71,237.65,4.2075]
[1738288589893,11.55549827,237.71,237.64,0.02890934]
[1738288590301,7.34889827,237.69,237.64,0.02890934]
[1738288591402,7.34889827,237.77,237.68,7.34889827]
[1738288591601,7.34889827,237.77,237.54,201.95680284]
[1738288591602,7.34889827,237.79,237.7,7.34889827]
[1738288591802,7.34889827,237.77,237.7,7.38028272]
[1738288592600,7.34889827,237.77,237.7,0.03138445]
[1738288593206,7.34889827,237.77,237.71,4.2065]
[1738288594209,7.34889827,237.75,237.7,0.03138445]
[1738288594703,7.34889827,237.75,237.7,4.23808445]
[1738288594900,7.34889827,237.73,237.7,0.03138445]
[1738288595101,7.34889827,237.71,237.7,0.03138445]
[1738288596411,11.55539827,237.71,237.7,0.03138445]
[1738288598313,7.34889827,237.71,237.7,0.03138445]
[1738288598513,11.55509827,237.74,237.7,0.03138445]
[1738288599512,7.34889827,237.74,237.7,0.03138445]
[1738288599713,7.34889827,237.78,237.7,7.38028272]
[1738288601206,7.34889827,237.78,237.72,4.2064]
[1738288601406,7.34889827,237.78,237.7,7.38028272]
[1738288602114,11.55419827,237.78,237.7,11.58688272]
[1738288602709,11.55419827,237.78,237.7,7.38028272]
[1738288603413,4.2055,237.77,237.7,11.58698272]
[1738288603712,7.34889827,237.76,237.7,4.23808445]
[1738288604312,7.34889827,237.76,237.7,0.03138445]
[1738288604513,7.34889827,237.76,237.71,4.2065]
[1738288604714,7.34889827,237.76,237.7,0.03138445]
[1738288606116,7.34889827,237.76,237.72,4.2062]
[1738288611723,7.34889827,237.78,237.72,4.2062]
[1738288614232,11.55419827,237.78,237.72,4.2062]
[1738288616130,7.34889827,237.78,237.72,4.2062]
[1738288617026,7.34889827,237.78,237.72,4.2064]
[1738288619029,11.55419827,237.78,237.72,4.2064]
[1738288619431,7.34889827,237.78,237.7,0.03138445]
[1738288619633,7.34889827,237.76,237.71,4.2065]
[1738288623335,7.34889827,237.76,237.7,0.03138445]
[1738288623534,7.34889827,237.76,237.7,4.23808445]
[1738288623936,7.34889827,237.74,237.7,4.23808445]
[1738288624238,7.34889827,237.74,237.7,0.03138445]
[1738288624533,7.34889827,237.72,237.7,0.03138445]
[1738288625432,4.2065,237.71,237.7,0.03138445]
[1738288626437,4.2071,237.68,237.58,10.01459827]
[1738288626636,7.34889827,237.64,237.6,4.2083]
[1738288626937,7.34889827,237.64,237.58,2.6657]
[1738288627533,0.02978596,237.63,237.59,4.23695597]
[1738288627929,0.02978596,237.63,237.61,4.2083]
[1738288630135,0.02978596,237.63,237.59,0.02835597]
[1738288630929,0.02978596,237.63,237.59,4.23695597]
[1738288631239,0.02978596,237.63,237.59,0.02835597]
[1738288632640,7.34889827,237.62,237.59,0.02835597]
[1738288632842,7.34889827,237.6,237.59,0.02835597]
[1738288633741,11.55739827,237.6,237.59,0.02835597]
[1738288634143,7.34889827,237.6,237.59,0.02835597]
[1738288634742,7.34889827,237.62,237.59,0.02835597]
[1738288637647,0.02978596,237.63,237.59,4.23705597]
[1738288637850,0.02978596,237.63,237.59,0.02835597]
[1738288641451,0.02978596,237.63,237.59,4.23705597]
[1738288643748,0.02978596,237.63,237.59,0.02835597]
[1738288644349,0.02978596,237.63,237.61,4.2083]
[1738288644855,0.02978596,237.63,237.62,4.2081]
[1738288645650,0.02978596,237.63,237.62,11.55699827]
[1738288646859,7.34889827,237.72,237.62,7.34889827]
[1738288647153,7.34889827,237.74,237.66,7.34889827]
[1738288647753,7.34889827,237.76,237.68,7.34889827]
[1738288648154,7.34889827,237.76,237.7,0.03115297]
[1738288648554,7.34889827,237.76,237.71,4.2065]
[1738288649054,7.34889827,237.8,237.73,4.2062]
[1738288649256,7.34889827,237.8,237.72,7.34889827]
[1738288649554,7.34889827,237.8,237.74,0.02954434]
[1738288650355,7.34889827,237.8,237.76,4.2056]
[1738288651958,7.34889827,237.84,237.78,4.2053]
[1738288652349,7.34889827,237.84,237.77,7.34889827]
[1738288653454,7.34889827,237.84,237.77,11.55419827]
[1738288653653,7.34889827,237.84,237.77,7.34889827]
[1738288654357,7.34889827,237.84,237.78,4.2053]
[1738288654553,7.34889827,237.84,237.77,7.34889827]
[1738288655453,7.34889827,237.82,237.75,7.34889827]
[1738288655657,7.34889827,237.8,237.73,7.34889827]
[1738288655853,7.34889827,237.8,237.76,0.03111796]
[1738288656152,7.34889827,237.82,237.76,0.03111796]
[1738288657458,4.205,237.8,237.76,0.03111796]
[1738288658862,7.34889827,237.82,237.76,0.03111796]
[1738288659158,7.34889827,237.84,237.76,0.03111796]
[1738288659550,7.34889827,237.84,237.78,4.2052]
[1738288659859,7.34889827,237.84,237.77,7.34889827]
[1738288660165,7.34889827,237.86,237.8,4.2049]
[1738288660658,7.34889827,237.86,237.81,0.03120298]
[1738288663061,7.34889827,237.88,237.81,0.03120298]
[1738288663250,4.2037,237.87,237.81,0.03120298]
[1738288663456,7.34889827,237.86,237.81,0.03120298]
[1738288664661,4.2043,237.84,237.81,0.03120298]
[1738288666363,11.55289827,237.86,237.81,0.03120298]
[1738288666964,7.34889827,237.86,237.81,0.03120298]
[1738288667167,7.34889827,237.86,237.81,4.23590298]
[1738288668769,7.34889827,237.88,237.83,4.2044]
[1738288670661,7.34889827,237.88,237.81,7.38010125]
[1738288670966,7.34889827,237.88,237.84,4.2042]
[1738288671358,11.55209827,237.9,237.84,4.2042]
[1738288671557,7.34889827,237.9,237.84,4.2042]
[1738288671763,7.34889827,237.92,237.84,7.34889827]
[1738288671963,7.34889827,237.92,237.87,4.2037]
[1738288674471,7.34889827,237.94,237.88,4.2035]
[1738288675672,7.34889827,237.94,237.87,4.2037]
[1738288676577,11.55139827,237.94,237.87,4.2037]
[1738288679478,7.34889827,237.92,237.86,0.02911011]
[1738288681081,4.2032,237.91,237.86,0.02911011]
[1738288682978,7.34889827,237.92,237.86,0.02911011]
[1738288684280,4.2031,237.91,237.86,0.02911011]
[1738288684782,7.34889827,237.92,237.86,0.02911011]
[1738288686081,4.2037,237.87,237.86,0.02911011]
[1738288689587,4.2035,237.89,237.86,0.02911011]
[1738288689888,7.34889827,237.9,237.86,0.02911011]
[1738288690589,4.2034,237.89,237.86,0.02911011]
[1738288692289,7.34889827,237.9,237.86,0.02911011]
[1738288692592,4.2032,237.91,237.86,0.02911011]
[1738288693490,7.34889827,237.92,237.86,0.02911011]
[1738288693691,11.55179827,237.92,237.86,0.02911011]
[1738288694996,4.2031,237.91,237.86,0.02911011]
[1738288695891,7.34889827,237.88,237.76,7.34889827]
[1738288696087,7.34889827,237.78,237.68,7.34889827]
[1738288696496,7.34889827,237.76,237.68,7.34889827]
[1738288697098,7.34889827,237.76,237.7,0.02717084]
[1738288697099,0.02916845,237.74,237.7,0.02717084]
[1738288697395,0.02916845,237.74,237.7,7.37606911]
[1738288698189,0.02916845,237.74,237.71,4.2065]
[1738288698396,0.02916845,237.74,237.7,7.37606911]
[1738288698793,0.02916845,237.74,237.7,11.58266911]
[1738288699198,0.02916845,237.74,237.7,0.02717084]
[1738288699799,4.2062,237.73,237.7,0.02717084]
[1738288701602,4.2064,237.72,237.7,0.02717084]
[1738288702701,4.23536845,237.74,237.7,0.02717084]
[1738288702897,0.02916845,237.74,237.7,0.02717084]
[1738288704201,11.49894823,237.74,237.7,0.02717084]
[1738288704600,15.70514823,237.74,237.7,0.02717084]
[1738288707305,4.23536845,237.74,237.7,0.02717084]
[1738288707507,0.02916845,237.74,237.7,0.02717084]
[1738288718215,0.02916845,237.74,237.7,4.23387084]
[1738288721117,0.02916845,237.74,237.7,0.02717084]
[1738288723518,0.02916845,237.74,237.7,4.23387084]
[1738288726321,0.02916845,237.74,237.7,0.02717084]
[1738288727521,7.33915061,237.71,237.7,0.02717084]
[1738288729219,7.33915061,237.73,237.7,0.02717084]
[1738288730122,11.54535061,237.73,237.7,0.02717084]
[1738288735529,7.33915061,237.73,237.7,0.02717084]
[1738288735729,0.02916845,237.74,237.7,0.02717084]
[1738288742828,0.02916845,237.74,237.73,7.33915061]
[1738288743229,0.02916845,237.74,237.73,11.54535061]
[1738288752235,0.02916845,237.74,237.73,4.2062]
[1738288760253,0.02916845,237.74,237.73,11.54535061]
[1738288763358,0.02916845,237.74,237.73,4.2062]
[1738288765358,0.02916845,237.74,237.71,4.2064]
[1738288771556,7.33915061,237.73,237.7,0.02717084]
[1738288773261,0.02916845,237.74,237.7,0.02717084]
[1738288776064,0.02916845,237.74,237.72,4.2062]
[1738288776264,0.02916845,237.74,237.7,0.02717084]
[1738288776762,0.02916845,237.74,237.7,4.23377084]
[1738288777357,0.02916845,237.74,237.7,0.02717084]
[1738288778068,7.33915061,237.71,237.7,0.02717084]
[1738288779869,7.33915061,237.73,237.7,0.02717084]
[1738288780168,11.54535061,237.73,237.7,0.02717084]
[1738288781269,7.33915061,237.73,237.7,0.02717084]
[1738288781469,0.02916845,237.74,237.7,0.02717084]
[1738288783868,0.02916845,237.74,237.7,4.23377084]
[1738288784171,0.02916845,237.74,237.7,0.02717084]
[1738288785070,0.02916845,237.74,237.71,4.2065]
[1738288790283,0.02916845,237.74,237.73,4.2062]
[1738288803084,0.02916845,237.74,237.7,4.23377084]
[1738288803887,4.23526845,237.74,237.7,0.02717084]
[1738288804281,0.02916845,237.74,237.7,0.02717084]
[1738288804481,7.33915061,237.71,237.58,7.33915061]
[1738288804684,7.33915061,237.67,237.59,1.33]
[1738288805083,7.33915061,237.69,237.63,4.2079]
[1738288805288,7.33915061,237.71,237.64,7.33915061]
[1738288805693,0.02841615,237.7,237.65,0.03039175]
[1738288805891,0.02841615,237.7,237.66,4.2073]
[1738288806284,0.02841615,237.7,237.66,7.33915061]
[1738288806587,0.02841615,237.7,237.68,11.54615061]
[1738288811392,0.02841615,237.7,237.69,4.2069]
[1738288814391,0.02841615,237.7,237.66,7.33915061]
[1738288815098,0.02841615,237.7,237.69,4.2069]
[1738288828715,0.02841615,237.7,237.65,0.03039175]
[1738288831413,7.33915061,237.69,237.65,0.03039175]
[1738288831710,11.54605061,237.69,237.65,0.03039175]
[1738288832514,7.33915061,237.69,237.65,0.03039175]
[1738288832912,7.33915061,237.67,237.65,0.03039175]
[1738288834319,7.33915061,237.69,237.65,0.03039175]
[1738288835217,7.33915061,237.69,237.65,4.23799175]
[1738288836723,7.33915061,237.69,237.65,0.03039175]
[1738288836923,7.33915061,237.69,237.66,4.2074]
[1738288837124,0.02841615,237.7,237.65,0.03039175]
[1738288837924,0.02841615,237.7,237.67,4.2072]
[1738288838114,0.02841615,237.7,237.65,0.03039175]
[1738288838925,0.02841615,237.7,237.65,4.23789175]
[1738288841721,0.02841615,237.7,237.65,0.03039175]
[1738288841917,0.02841615,237.7,237.66,4.2074]
[1738288843829,0.02841615,237.7,237.65,0.03039175]
[1738288844129,7.33915061,237.67,237.65,0.03039175]
[1738288848429,7.33915061,237.69,237.65,0.03039175]
[1738288852930,11.54645061,237.67,237.65,0.03039175]
[1738288853927,4.2074,237.66,237.65,0.03039175]
[1738288857731,11.54645061,237.67,237.65,0.03039175]
[1738288860634,7.33915061,237.67,237.65,0.03039175]
[1738288860835,0.02841615,237.7,237.65,0.03039175]
[1738288861335,0.02841615,237.7,237.66,4.2073]
[1738288863735,0.02841615,237.7,237.67,4.2072]
[1738288865139,0.02841615,237.7,237.68,4.207]
[1738288865637,7.33915061,237.81,237.68,7.33915061]
[1738288865831,7.33915061,237.83,237.74,7.33915061]
[1738288866030,7.33915061,237.85,237.76,7.33915061]
[1738288866337,7.33915061,237.85,237.79,4.2051]
[1738288866837,0.02870383,237.84,237.8,0.02778793]
[1738288867337,0.02870383,237.84,237.8,4.23268793]
[1738288867934,0.02870383,237.84,237.8,0.02778793]
[1738288868139,7.33915061,237.83,237.8,0.02778793]
[1738288872636,7.33915061,237.81,237.69,2.7645]
[1738288872835,7.33915061,237.72,237.64,7.33915061]
[1738288873040,7.33915061,237.7,237.62,7.33915061]
[1738288873639,7.33915061,237.7,237.65,4.2076]
[1738288873838,0.03127248,237.68,237.65,4.2076]
[1738288876039,7.37042309,237.68,237.64,0.03030691]
[1738288876245,7.33915061,237.66,237.64,0.03030691]
[1738288877046,7.37042309,237.68,237.64,0.03030691]
[1738288877442,0.03127248,237.68,237.64,0.03030691]
[1738288879147,7.33915061,237.66,237.64,0.03030691]
[1738288881248,11.54665061,237.66,237.64,0.03030691]
[1738288883047,4.2076,237.65,237.64,0.03030691]
[1738288883250,9.95915061,237.66,237.52,7.33915061]
[1738288883448,7.33915061,237.59,237.52,7.33915061]
[1738288884249,7.33915061,237.61,237.52,7.33915061]
[1738288884444,0.02664032,237.58,237.53,0.03059007]
[1738288886057,0.02664032,237.58,237.54,4.2095]
[1738288887257,0.02664032,237.58,237.54,7.33915061]
[1738288887455,0.02664032,237.58,237.56,7.33915061]
[1738288888556,0.02664032,237.58,237.57,4.209]
[1738288889555,0.02664032,237.58,237.55,4.2092]
[1738288889756,0.02664032,237.58,237.54,7.33915061]
[1738288890159,0.02664032,237.58,237.56,4.2092]
[1738288891760,0.02664032,237.58,237.57,4.209]
[1738288893962,0.02664032,237.58,237.54,7.33915061]
[1738288894263,0.02664032,237.58,237.56,4.2092]
[1738288896166,0.02664032,237.58,237.54,7.33915061]
[1738288896367,0.02664032,237.58,237.57,4.209]
[1738288897263,0.02664032,237.58,237.53,0.03059007]
[1738288897669,7.33915061,237.57,237.53,0.03059007]
[1738288899070,0.02664032,237.58,237.53,0.03059007]
[1738288899268,0.02664032,237.58,237.53,4.24019007]
[1738288899470,0.02664032,237.58,237.54,7.33915061]
[1738288900069,0.02664032,237.58,237.55,4.2092]
[1738288902771,0.02664032,237.58,237.57,4.209]
[1738288905974,0.02664032,237.58,237.55,4.2093]
[1738288906273,0.02664032,237.58,237.53,0.03059007]
[1738288906873,0.02664032,237.58,237.53,4.24019007]
[1738288908276,7.33915061,237.57,237.53,0.03059007]
[1738288908474,7.33915061,237.55,237.53,0.03059007]
[1738288909777,7.33915061,237.57,237.53,0.03059007]
[1738288910080,0.02664032,237.58,237.53,0.03059007]
[1738288910479,0.02664032,237.58,237.53,4.24019007]
[1738288916074,0.02664032,237.58,237.54,4.2094]
[1738288916278,0.02664032,237.58,237.54,7.33915061]
[1738288917083,0.02664032,237.58,237.55,4.2094]
[1738288917383,7.33915061,237.72,237.56,7.33915061]
[1738288917583,31.42983856,237.75,237.66,4.2074]
[1738288917584,7.33915061,237.74,237.66,4.2074]
[1738288918484,0.02964209,237.72,237.68,0.03233376]
[1738288920184,0.02964209,237.72,237.68,4.23933376]
[1738288920986,0.02964209,237.72,237.68,0.03233376]
[1738288923787,7.3687927,237.72,237.68,0.03233376]
[1738288924491,4.2066,237.71,237.68,0.03233376]
[1738288925787,7.3687927,237.72,237.68,4.23933376]
[1738288925992,0.02964209,237.72,237.68,0.03233376]
[1738288927290,0.02964209,237.72,237.69,4.2069]
[1738288928591,0.02964209,237.72,237.68,4.23943376]
[1738288928991,0.02964209,237.72,237.68,0.03233376]
[1738288929193,0.02964209,237.72,237.7,4.2067]
[1738288929688,0.02964209,237.72,237.68,4.23923376]
[1738288929890,7.3687927,237.72,237.68,0.03233376]
[1738288930191,7.33915061,237.7,237.68,0.03233376]
[1738288933194,4.2069,237.69,237.68,0.03233376]
[1738288934094,7.33915061,237.63,237.58,92.60398924]
[1738288935092,7.33915061,237.68,237.63,4.2079]
[1738288935295,0.02722651,237.63,237.58,88.42634534]
[1738288935494,7.33915061,237.72,237.58,88.39528924]
[1738288935695,0.03117053,237.63,237.62,4.2081]
[1738288935995,7.33915061,237.72,237.58,88.39528924]
[1738288936195,0.03115289,237.65,237.6,0.02781952]
[1738288936386,0.03115289,237.65,237.64,4.2078]
[1738288942499,7.33915061,237.74,237.69,4.2069]
[1738288943099,7.33915061,237.74,237.66,7.33915061]
[1738288943300,7.33915061,237.74,237.7,4.2066]
[1738288943502,7.33915061,237.74,237.66,7.33915061]
[1738288943704,0.03086952,237.74,237.71,4.2065]
[1738288943998,0.03086952,237.74,237.7,0.03001275]
[1738288944502,0.03086952,237.74,237.7,4.23671275]
[1738288945797,0.03086952,237.74,237.7,0.03001275]
[1738288948502,7.37002013,237.74,237.7,0.03001275]
[1738288949804,7.37002013,237.74,237.7,7.36916336]
[1738288949805,0.03086952,237.74,237.7,7.36916336]
[1738288950808,0.03086952,237.74,237.72,4.2063]
[1738288953800,7.33915061,237.88,237.82,4.2045]
[1738288954012,7.33915061,237.91,237.82,7.33915061]
[1738288954605,7.33915061,237.91,237.84,4.2042]
[1738288955104,0.02737895,237.9,237.85,0.02870303]
[1738288957008,0.02737895,237.9,237.86,4.2039]
[1738288961712,0.02737895,237.9,237.85,0.02870303]
[1738288962311,0.02737895,237.9,237.85,4.23280303]
[1738288968119,7.33915061,237.89,237.85,0.02870303]
[1738288969919,0.02737895,237.9,237.88,7.33915061]
[1738288970515,0.02737895,237.9,237.89,4.2034]
[1738288972416,0.02737895,237.9,237.88,7.33915061]
[1738288973221,0.02737895,237.9,237.88,11.54265061]
[1738288973824,0.02737895,237.9,237.88,7.33915061]
[1738288974022,0.02737895,237.9,237.89,4.2034]
[1738288975222,4.202,237.97,237.92,4.2028]
[1738288975423,4.202,237.97,237.92,11.54195061]
[1738288976321,4.202,237.97,237.92,11.57339047]
[1738288976718,7.33915061,238.02,237.94,7.33915061]
[1738288976922,4.2015,238.0,237.95,4.2023]
[1738288977119,4.2015,238.0,237.96,0.02799628]
[1738288978123,11.54035061,238.02,237.96,0.02799628]
[1738288979327,11.54035061,238.02,237.96,4.23009628]
[1738288979528,7.33915061,238.02,237.96,4.23009628]
[1738288981731,7.33915061,238.02,237.97,4.2019]
[1738288981932,7.33915061,238.02,237.96,0.02799628]
[1738288982328,7.33915061,238.02,237.98,4.2017]
[1738288982831,7.33915061,238.02,237.96,4.22999628]
[1738288983428,7.33915061,238.02,237.96,0.02799628]
[1738288983630,11.54025061,238.02,237.96,0.02799628]
[1738288984832,4.2013,238.01,237.96,0.02799628]
[1738288985133,7.33915061,237.98,237.96,0.02799628]
[1738288986330,4.2019,237.97,237.96,0.02799628]
[1738288994438,7.33915061,237.98,237.86,14.29335061]
[1738288994639,4.2029,237.92,237.86,8.73255061]
[1738288994839,7.33915061,237.89,237.8,14.2884887]
[1738288995045,7.33915061,237.87,237.8,14.2884887]
[1738288995737,7.33915061,237.87,237.81,0.03003404]
[1738288995738,0.0305994,237.86,237.81,0.03003404]
[1738288996345,7.33915061,237.83,237.81,0.03003404]
[1738288996545,11.54365061,237.83,237.81,0.03003404]
[1738288997143,7.33915061,237.85,237.81,0.03003404]
[1738288999244,11.54325061,237.85,237.81,0.03003404]
[1738289000546,7.33915061,237.85,237.81,0.03003404]
[1738289000850,0.0305994,237.86,237.81,0.03003404]
[1738289001440,0.0305994,237.86,237.82,7.33915061]
[1738289001645,0.0305994,237.86,237.84,7.33915061]
[1738289002151,0.0305994,237.86,237.84,11.54335061]
[1738289002949,7.33915061,237.95,237.89,4.2033]
[1738289003541,7.33915061,237.95,237.9,4.2032]
[1738289003746,7.33915061,237.97,237.9,4.2032]
[1738289003945,7.33915061,237.97,237.9,4.23416838]
[1738289004545,11.54115061,237.97,237.9,0.03096838]
[1738289004843,7.33915061,237.97,237.9,0.03096838]
[1738289005247,4.2021,237.96,237.9,0.03096838]
[1738289005453,7.33915061,237.97,237.9,0.03096838]
[1738289005648,7.33915061,238.01,237.92,7.33915061]
[1738289005850,7.33915061,238.01,237.93,4.2026]
[1738289006049,7.33915061,238.01,237.94,7.33915061]
[1738289006443,11.54045061,238.01,237.95,0.02725743]
[1738289006652,11.54045061,238.01,237.92,11.54185061]
[1738289006847,7.33915061,237.94,237.86,7.33915061]
[1738289007251,4.2029,237.92,237.88,0.02963284]
[1738289007453,7.33915061,237.94,237.88,0.02963284]
[1738289007653,7.33915061,237.96,237.9,4.2032]
[1738289008451,7.33915061,237.96,237.91,4.203]
[1738289008954,11.54135061,237.96,237.88,7.36878345]
[1738289009150,11.54135061,237.96,237.89,4.2032]
[1738289009455,11.54135061,237.96,237.88,7.36878345]
[1738289009655,11.54135061,237.96,237.9,4.2032]
[1738289010156,7.33915061,237.96,237.88,7.36878345]
[1738289010354,2.6965,238.12,237.9,7.33915061]
[1738289010551,7.33915061,238.02,237.94,7.33915061]
[1738289010755,7.33915061,238.02,237.99,0.02737534]
[1738289010956,7.33915061,238.06,237.99,0.02737534]
[1738289011457,7.33915061,238.04,237.99,0.02737534]
[1738289012455,7.33915061,238.06,237.99,4.22897534]
[1738289012655,4.2003,238.07,237.99,4.22897534]
[1738289013957,11.43703356,238.1,237.99,4.22897534]
[1738289014152,4.2004,238.06,237.99,4.22897534]
[1738289015054,11.43703356,238.1,237.99,0.02737534]
[1738289015259,15.63683356,238.1,237.99,0.02737534]
[1738289015459,4.1998,238.1,237.99,0.02737534]
[1738289016353,4.1998,238.1,238.04,4.2007]
[1738289016756,4.1998,238.1,238.05,0.03110921]
[1738289019763,11.43703356,238.13,238.05,0.03110921]
[1738289019956,4.1995,238.12,238.05,0.03110921]
[1738289021165,4.1995,238.12,238.05,4.23160921]
[1738289021559,11.43703356,238.13,238.05,0.03110921]
[1738289021961,11.43703356,238.13,238.06,4.2004]
[1738289022955,11.43703356,238.1,238.05,0.03110921]
[1738289024059,4.2,238.09,238.05,0.03110921]
[1738289025161,4.2,238.08,238.05,0.03110921]
[1738289025665,11.43703356,238.13,238.05,0.03110921]
[1738289025964,4.1999,238.09,238.05,0.03110921]
[1738289026165,11.43703356,238.13,238.06,4.2003]
[1738289027265,4.1996,238.11,238.06,4.2003]
[1738289028064,15.63633356,238.13,238.06,4.2003]
[1738289028558,4.1993,238.12,238.06,4.2003]
[1738289029164,11.43703356,238.13,238.05,0.03110921]
[1738289029356,4.2002,238.08,238.05,0.03110921]
[1738289029755,4.2004,238.06,238.05,0.03110921]
[1738289032565,7.31972782,238.06,238.05,0.03110921]
[1738289032769,11.51992782,238.08,238.05,0.03110921]
[1738289033466,7.31972782,238.08,238.05,0.03110921]
[1738289034865,7.31972782,238.1,238.05,0.03110921]
[1738289035066,11.51912782,238.12,238.05,0.03110921]
[1738289035467,7.31972782,238.12,238.05,0.03110921]
[1738289035669,7.31972782,238.14,238.06,7.31972782]
[1738289036176,7.31972782,238.14,238.08,0.0297578]
[1738289036369,11.51872782,238.14,238.08,4.2296578]
[1738289037467,7.31972782,238.2,238.13,4.1991]
[1738289037868,7.31972782,238.2,238.14,0.02660971]
[1738289038167,7.31972782,238.22,238.14,7.34633753]
[1738289038470,7.31972782,238.24,238.14,7.34633753]
[1738289038869,7.31972782,238.22,238.14,7.34633753]
[1738289039062,7.31972782,238.2,238.14,4.22540971]
[1738289039463,7.31972782,238.22,238.14,7.34633753]
[1738289039770,7.31972782,238.22,238.17,4.1983]
[1738289039971,7.31972782,238.24,238.16,7.31972782]
[1738289040672,1.4141,238.26,238.14,0.02660971]
[1738289041168,1.4141,238.26,238.18,4.1982]
[1738289041169,4.1971,238.25,238.18,4.1982]
[1738289041471,4.1971,238.25,238.19,0.02961839]
[1738289042870,11.41932554,238.24,238.19,0.02961839]
[1738289043068,11.41932554,238.21,238.19,0.02961839]
[1738289044077,15.61702554,238.21,238.19,0.02961839]
[1738289044474,11.41932554,238.21,238.08,2.7892]
[1738289044677,11.41932554,238.18,238.07,6.94126963]
[1738289044869,11.41932554,238.12,238.02,1.4008]
[1738289045372,11.41932554,238.12,237.98,11.41932554]
[1738289045777,0.02761774,238.07,238.03,0.02967057]
[1738289046172,0.02761774,238.07,238.03,4.23047057]
[1738289048177,0.02761774,238.07,238.03,0.02967057]
[1738289052889,0.02761774,238.07,238.04,4.2006]
[1738289053090,0.02761774,238.07,238.03,0.02967057]
[1738289053587,4.2007,238.04,238.03,0.02967057]
[1738289054783,4.2007,238.04,237.84,14.03932554]
[1738289054784,11.41932554,238.06,237.89,11.41932554]
[1738289054986,11.41932554,238.01,237.86,11.41932554]
[1738289055793,4.2016,237.99,237.86,11.41932554]
[1738289055991,0.02739722,237.96,237.91,4.23373997]
[1738289056292,0.02739722,237.96,237.91,0.03093997]
[1738289057494,4.2023,237.95,237.91,0.03093997]
[1738289059593,4.2025,237.94,237.91,0.03093997]
[1738289059991,0.02739722,237.96,237.91,0.03093997]
[1738289062498,4.22959722,237.96,237.91,0.03093997]
[1738289062698,0.02739722,237.96,237.91,0.03093997]
[1738289063000,4.2028,237.92,237.91,0.03093997]
[1738289063997,11.41932554,237.93,237.8,6.94911522]
[1738289064200,11.41932554,237.93,237.82,4.2046]
[1738289064998,4.2031,237.91,237.85,0.03204536]
[1738289065200,0.03115628,237.9,237.85,0.03204536]
[1738289065997,0.03115628,237.9,237.89,4.2034]
[1738289067102,11.41932554,238.03,237.93,4.2026]
[1738289067103,15.62032554,238.03,237.93,4.2026]
[1738289067303,11.41932554,238.03,237.89,11.41932554]
[1738289068203,0.02869669,237.98,237.95,4.2023]
[1738289069508,0.02869669,237.98,237.96,4.202]
[1738289073803,9.669e-05,237.98,237.96,7.0338]
[1738289075606,9.669e-05,237.98,237.97,4.202]
[1738289081820,9.669e-05,237.98,237.94,0.02996701]
[1738289082018,4.2021,237.97,237.94,0.02996701]
[1738289082717,4.2022,237.96,237.94,0.02996701]
[1738289084722,11.41932554,237.97,237.94,0.02996701]
[1738289085421,4.2022,237.96,237.94,0.02996701]
[1738289085722,11.41932554,237.97,237.81,1.3821]